bitfinex/quotes_ETHUSD_20230119
["timestamp","ask_amount","ask_price","bid_price","bid_amount"]
[1674102078266,0.09810024,1527.5,1527.4,9.61173382]
[1674102080060,0.09810024,1527.5,1527.4,16.15880382]
[1674102082321,0.09810024,1527.5,1527.4,9.61173382]
[1674102085791,0.09810024,1527.5,1527.4,16.15880382]
[1674102086156,0.09810024,1527.5,1527.4,18.65715682]
[1674102087310,0.09810024,1527.5,1527.4,19.40442811]
[1674102087953,0.09810024,1527.5,1527.4,18.65715682]
[1674102089006,0.09810024,1527.5,1527.4,19.40453999]
[1674102090547,0.09449797,1527.5,1527.4,19.40453999]
[1674102091102,0.09449797,1527.5,1527.4,20.09061337]
[1674102091783,0.09449797,1527.5,1527.4,21.38061337]
[1674102092419,0.09449797,1527.5,1527.4,20.69453999]
[1674102093622,0.09449797,1527.5,1527.4,20.69415124]
[1674102097189,0.09449797,1527.5,1527.4,19.94715682]
[1674102097404,0.09449797,1527.5,1527.4,26.01568411]
[1674102097661,0.09449797,1527.5,1527.4,28.75790366]
[1674102097782,0.09449797,1527.5,1527.4,31.11412884]
[1674102097993,0.11239001,1527.7,1527.5,1.01518291]
[1674102098353,0.11239001,1527.7,1527.6,22.31714829]
[1674102098513,0.11239001,1527.7,1527.6,26.0638641]
[1674102098879,0.11239001,1527.7,1527.6,25.31714829]
[1674102102330,0.11239001,1527.7,1527.6,25.37981211]
[1674102102539,0.11239001,1527.7,1527.6,25.38181211]
[1674102103467,0.11239001,1527.7,1527.6,24.09181211]
[1674102103691,0.11239001,1527.7,1527.6,22.80481211]
[1674102106615,0.11239001,1527.7,1527.6,24.09281211]
[1674102109774,0.11239001,1527.7,1527.6,26.12510307]
[1674102110425,0.11239001,1527.7,1527.6,34.74810307]
[1674102112104,0.11239001,1527.7,1527.6,34.00581211]
[1674102114328,0.11239001,1527.7,1527.6,34.01137701]
[1674102120433,0.11239001,1527.7,1527.6,32.72337701]
[1674102120749,0.10851261,1527.7,1527.6,39.75962452]
[1674102120973,0.10851261,1527.7,1527.6,36.40707037]
[1674102121402,0.10851261,1527.7,1527.6,36.83017986]
[1674102123502,0.11787263,1527.8,1527.6,40.86599134]
[1674102123659,0.11787263,1527.8,1527.7,7.02821575]
[1674102124033,0.11787263,1527.8,1527.7,21.80303308]
[1674102126323,0.11787263,1527.8,1527.7,21.8676969]
[1674102126738,0.11787263,1527.8,1527.7,25.90350838]
[1674102127094,0.12376645,1527.9,1527.8,15.74710275]
[1674102127317,0.12376645,1527.9,1527.8,33.28876746]
[1674102128341,6.45e-06,1527.9,1527.8,38.95577214]
[1674102128689,6.45e-06,1527.9,1527.8,40.06057605]
[1674102128833,6.45e-06,1527.9,1527.8,39.03568815]
[1674102129192,6.45e-06,1527.9,1527.8,38.61257866]
[1674102129406,6.45e-06,1527.9,1527.8,31.60707276]
[1674102130435,6.45e-06,1527.9,1527.8,30.62718625]
[1674102131563,6.45e-06,1527.9,1527.8,30.68966721]
[1674102132399,6.45e-06,1527.9,1527.8,31.66402495]
[1674102133457,6.45e-06,1527.9,1527.8,29.94711769]
[1674102134323,6.45e-06,1527.9,1527.8,30.68309383]
[1674102135603,6.45e-06,1527.9,1527.8,29.94711769]
[1674102135818,6.45e-06,1527.9,1527.8,30.68306]
[1674102136031,6.45e-06,1527.9,1527.8,29.94711769]
[1674102138780,6.45e-06,1527.9,1527.8,22.31608371]
[1674102138963,6.45e-06,1527.9,1527.8,13.17158371]
[1674102140194,6.45e-06,1527.9,1527.8,16.17158371]
[1674102143630,6.45e-06,1527.9,1527.8,16.15536382]
[1674102148506,6.45e-06,1527.9,1527.8,16.89247351]
[1674102149174,6.45e-06,1527.9,1527.8,16.89246356]
[1674102150506,6.45e-06,1527.9,1527.8,16.89802773]
[1674102152151,6.45e-06,1527.9,1527.8,16.16092799]
[1674102153885,1.64128119,1528.1,1527.9,0.00360824]
[1674102154185,2.91701578,1528.1,1527.9,6.54829824]
[1674102155903,1.539,1528.0,1527.9,6.54829824]
[1674102156076,1.539,1528.0,1527.9,0.00360824]
[1674102157809,4.64594636,1528.0,1527.9,0.00360824]
[1674102158048,6.3432937,1528.0,1527.9,0.00360824]
[1674102158187,7.3432937,1528.0,1527.9,0.00360824]
[1674102158393,6.65995194,1528.0,1527.9,0.00360824]
[1674102158605,6.32015114,1528.0,1527.9,0.00360824]
[1674102158932,6.38615114,1528.0,1527.9,0.00360824]
[1674102159155,13.95676809,1528.0,1527.9,0.00360824]
[1674102159404,20.53462634,1528.0,1527.9,0.00360824]
[1674102160405,20.19452647,1528.0,1527.9,0.00360824]
[1674102160821,21.22064342,1528.0,1527.9,0.00360824]
[1674102161438,20.19452647,1528.0,1527.9,0.00360824]
[1674102162309,13.65002647,1528.0,1527.9,0.00360824]
[1674102162526,12.93035207,1528.0,1527.9,0.00360824]
[1674102162739,13.65002647,1528.0,1527.9,0.00360824]
[1674102163872,12.93035207,1528.0,1527.9,0.00360824]
[1674102164084,13.65002647,1528.0,1527.9,0.00360824]
[1674102164518,12.93035207,1528.0,1527.9,0.00360824]
[1674102166641,27.14251101,1528.0,1527.9,0.00360824]
[1674102166790,24.05656873,1528.0,1527.9,0.00360824]
[1674102167005,29.46261637,1528.0,1527.9,0.00360824]
[1674102167268,25.42680489,1528.0,1527.9,0.00360824]
[1674102167950,2.524,1527.9,1527.5,0.06466382]
[1674102168175,3.067,1527.6,1527.5,0.06466382]
[1674102170827,3.067,1527.6,1527.3,9.26196382]
[1674102171041,1.539,1527.5,1527.3,9.26196382]
[1674102171267,1.539,1527.5,1527.3,15.80938382]
[1674102171453,1.539,1527.5,1527.3,6.61208382]
[1674102171836,0.066,1527.7,1527.3,19.14991446]
[1674102172047,0.066,1527.7,1527.4,5.43740971]
[1674102172318,0.066,1527.7,1527.5,20.37634012]
[1674102172476,0.066,1527.7,1527.5,19.63992]
[1674102172686,0.066,1527.7,1527.5,22.558583]
[1674102178085,1.539,1527.9,1527.6,1.0]
[1674102178304,1.539,1527.9,1527.7,13.09156]
[1674102178522,1.539,1527.9,1527.7,13.10622382]
[1674102178892,0.066,1528.0,1527.7,13.10622382]
[1674102179224,0.066,1528.0,1527.9,13.08986]
[1674102186370,0.006,1528.0,1527.9,25.69057326]
[1674102186586,0.10728119,1528.1,1527.9,24.10764801]
[1674102186927,0.10728119,1528.1,1528.0,16.089]
[1674102187081,0.10728119,1528.1,1528.0,18.52313202]
[1674102187292,0.10728119,1528.1,1528.0,17.78765923]
[1674102190246,0.10728119,1528.1,1528.0,18.52287825]
[1674102190599,0.10728119,1528.1,1528.0,19.32665923]
[1674102190810,0.10728119,1528.1,1528.0,20.06164867]
[1674102191142,0.10728119,1528.1,1528.0,19.32665923]
[1674102192082,0.10728119,1528.1,1528.0,23.36247071]
[1674102192244,0.10728119,1528.1,1528.0,19.32665923]
[1674102192450,0.10728119,1528.1,1528.0,23.36247071]
[1674102192700,0.10728119,1528.1,1528.0,19.32665923]
[1674102193035,0.10441886,1528.1,1528.0,19.32665923]
[1674102193744,0.10441886,1528.1,1528.0,19.37665923]
[1674102193966,0.10441886,1528.1,1528.0,19.39132305]
[1674102195915,0.10441886,1528.1,1528.0,17.85232305]
[1674102210999,0.10441886,1528.1,1528.0,17.84999806]
[1674102211317,0.10441886,1528.1,1528.0,16.15133883]
[1674102221887,0.10441886,1528.1,1528.0,16.88848042]
[1674102222835,0.10441886,1528.1,1528.0,18.42748042]
[1674102223669,0.10441886,1528.1,1528.0,16.88848042]
[1674102224048,0.10441886,1528.1,1528.0,20.30846948]
[1674102224355,0.10441886,1528.1,1528.0,21.96613175]
[1674102224879,0.10441886,1528.1,1528.0,24.53001965]
[1674102226442,0.10441886,1528.1,1528.0,23.84832523]
[1674102228031,0.10441886,1528.1,1528.0,25.22051022]
[1674102228240,0.10441886,1528.1,1528.0,23.84832523]
[1674102228562,0.10441886,1528.1,1528.0,23.50591078]
[1674102228875,0.10441886,1528.1,1528.0,23.84832523]
[1674102229187,0.09385323,1528.2,1528.0,27.88413671]
[1674102229402,0.09385323,1528.2,1528.1,3.97950817]
[1674102229709,0.09385323,1528.2,1528.1,20.06764817]
[1674102229923,0.09385323,1528.2,1528.1,21.04361602]
[1674102232094,0.09385323,1528.2,1528.1,22.57761602]
[1674102232663,0.09385323,1528.2,1528.1,21.57761602]
[1674102233022,0.09385323,1528.2,1528.1,22.60250392]
[1674102235261,0.09385323,1528.2,1528.1,21.57761602]
[1674102235650,0.09385323,1528.2,1528.1,21.64227984]
[1674102237463,0.09385323,1528.2,1528.1,22.66716774]
[1674102237875,0.09385323,1528.2,1528.1,21.64227984]
[1674102239768,0.09385323,1528.2,1528.1,21.98483409]
[1674102240003,0.09385323,1528.2,1528.1,21.6414455]
[1674102242165,0.09385323,1528.2,1528.1,20.1074455]
[1674102243116,0.09385323,1528.2,1528.1,21.1323334]
[1674102243332,0.09385323,1528.2,1528.1,20.1074455]
[1674102243951,0.09385323,1528.2,1528.1,21.1323334]
[1674102244817,0.09385323,1528.2,1528.1,20.1074455]
[1674102247208,0.09385323,1528.2,1528.1,19.42594619]
[1674102248109,0.09385323,1528.2,1528.1,20.1074455]
[1674102250895,0.09012887,1528.2,1528.1,20.1074455]
[1674102254779,8.87e-06,1528.2,1528.1,22.6713334]
[1674102255151,0.68510607,1529.1,1528.2,4.25000421]
[1674102255357,1.71275517,1529.2,1528.6,32.70965]
[1674102255569,0.68509606,1529.3,1528.7,8.64717729]
[1674102255725,0.68970496,1529.4,1528.8,41.87584979]
[1674102255932,0.0046089,1529.4,1528.9,4.78150739]
[1674102256162,0.48970496,1529.5,1529.0,28.17715074]
[1674102256367,2.51805911,1529.6,1529.2,8.06428]
[1674102256580,2.85819659,1529.5,1529.2,26.15712]
[1674102256824,1.539,1529.5,1529.2,26.15712]
[1674102256985,1.539,1529.5,1529.2,19.61784]
[1674102257191,1.489,1529.5,1529.2,19.61784]
[1674102257436,0.1489,1529.4,1529.2,19.61784]
[1674102258293,1.1489,1529.4,1529.2,19.61784]
[1674102259397,1.1489,1529.4,1529.2,19.68250382]
[1674102259959,0.1489,1529.4,1529.2,19.68250382]
[1674102262548,2.605,1529.6,1529.2,19.68250382]
[1674102263674,0.066,1529.6,1529.2,19.68250382]
[1674102265651,1.539,1529.5,1529.2,19.68250382]
[1674102266345,1.539,1529.5,1529.2,13.14322382]
[1674102266536,0.1539,1529.4,1529.2,13.14322382]
[1674102266754,1.6929,1529.4,1529.2,13.14322382]
[1674102266963,1.539,1529.4,1529.2,13.14322382]
[1674102267705,1.539,1529.5,1529.2,13.14322382]
[1674102268328,0.066,1529.6,1529.2,13.14322382]
[1674102268538,0.53921417,1529.6,1529.2,13.14322382]
[1674102268798,0.066,1529.6,1529.2,13.14322382]
[1674102269013,0.066,1529.6,1529.2,14.68222382]
[1674102269227,0.066,1529.6,1529.4,26.15404]
[1674102270439,0.066,1529.6,1529.4,19.61553]
[1674102272590,0.066,1529.6,1529.4,13.07702]
[1674102272913,0.2265,1529.6,1529.4,13.07702]
[1674102274324,0.1605,1529.6,1529.4,13.14168382]
[1674102276161,1.539,1529.5,1529.4,6.60317382]
[1674102276469,1.80895,1529.5,1529.4,0.06466382]
[1674102279939,1.80895,1529.5,1529.4,0.06102782]
[1674102280307,0.6509,1529.6,1529.4,0.06102782]
[1674102280513,1.1683947,1529.9,1529.4,6.59953782]
[1674102280773,2.1683947,1529.9,1529.4,13.13804782]
[1674102280989,0.11683947,1529.8,1529.4,13.13804782]
[1674102281157,1.11683947,1529.8,1529.4,6.59953782]
[1674102281374,7.65373947,1529.8,1529.4,0.06102782]
[1674102281584,1.539,1529.5,1529.4,0.06102782]
[1674102282201,1.539,1529.5,1529.3,6.59964782]
[1674102284152,1.539,1529.6,1529.3,13.13857782]
[1674102284326,0.1539,1529.5,1529.3,13.13857782]
[1674102285314,1.594,1529.7,1529.3,13.13857782]
[1674102286357,1.594,1529.7,1529.3,13.08857782]
[1674102287683,2.0844,1529.7,1529.3,13.08857782]
[1674102287892,1.594,1529.7,1529.3,13.08857782]
[1674102288141,2.60029395,1529.7,1529.3,13.08857782]
[1674102290099,3.09069395,1529.7,1529.3,13.08857782]
[1674102290310,2.60029395,1529.7,1529.3,13.08857782]
[1674102290969,2.53429395,1529.7,1529.3,13.08857782]
[1674102291840,8.53493947,1529.8,1529.3,13.08857782]
[1674102291998,7.9278,1529.8,1529.5,19.61397]
[1674102292666,8.60994834,1529.8,1529.5,19.61397]
[1674102292890,0.74814834,1529.8,1529.5,19.61397]
[1674102293036,0.066,1529.8,1529.6,4.961397]
[1674102293408,0.74814834,1529.8,1529.7,19.61166]
[1674102293881,0.066,1529.8,1529.7,19.61166]
[1674102294299,0.74814834,1529.8,1529.7,19.61166]
[1674102294772,1.09365911,1529.8,1529.7,19.61166]
[1674102295140,1.09365911,1529.8,1529.7,22.0689657]
[1674102295348,2.46387126,1529.8,1529.7,19.61166]
[1674102296133,1.09365911,1529.8,1529.7,19.61166]
[1674102296960,1.02765911,1529.8,1529.7,19.67268782]
[1674102297152,1.02765911,1529.8,1529.7,13.13546782]
[1674102297153,2.39787126,1529.8,1529.7,13.13546782]
[1674102297373,2.39787126,1529.8,1529.7,6.59824782]
[1674102297374,1.89880428,1529.8,1529.7,6.59824782]
[1674102297974,3.61845957,1529.8,1529.7,6.59824782]
[1674102298184,1.89880428,1529.8,1529.7,6.59824782]
[1674102298933,2.92677037,1529.8,1529.7,6.59824782]
[1674102299876,2.92677037,1529.8,1529.7,13.13546782]
[1674102301225,2.39817824,1529.8,1529.7,13.13546782]
[1674102303595,1.37021215,1529.8,1529.7,6.59824782]
[1674102306226,3.08986744,1529.8,1529.7,6.59824782]
[1674102306378,1.71965529,1529.8,1529.7,6.59824782]
[1674102306634,2.10846029,1529.8,1529.7,6.59824782]
[1674102307062,3.47955556,1529.8,1529.7,0.06102782]
[1674102309215,3.47955556,1529.8,1529.6,6.59841782]
[1674102309423,1.02839373,1529.7,1529.6,6.59841782]
[1674102310442,1.37109527,1529.7,1529.6,6.59841782]
[1674102310656,2.39948677,1529.7,1529.6,6.59841782]
[1674102310845,1.0283915,1529.7,1529.6,6.59841782]
[1674102311061,2.39948677,1529.7,1529.6,6.59841782]
[1674102313415,1.5244772,1529.7,1529.6,6.59841782]
[1674102313587,3.24413249,1529.7,1529.6,6.59841782]
[1674102313804,1.5244772,1529.7,1529.6,6.59841782]
[1674102314202,1.37109527,1529.7,1529.6,6.59841782]
[1674102314417,2.39954701,1529.7,1529.6,6.59841782]
[1674102314661,2.55292894,1529.7,1529.6,6.59841782]
[1674102316254,3.24413249,1529.7,1529.6,6.59841782]
[1674102316414,1.5244772,1529.7,1529.6,6.59841782]
[1674102317061,3.24413249,1529.7,1529.6,6.59841782]
[1674102317286,3.60742624,1529.7,1529.6,6.59841782]
[1674102318342,1.5244772,1529.7,1529.6,6.59841782]
[1674102318585,0.83909028,1529.7,1529.6,13.13269593]
[1674102318899,1.78036259,1529.8,1529.6,13.13269593]
[1674102320372,0.75170835,1529.8,1529.6,13.13269593]
[1674102320564,0.75170835,1529.8,1529.7,2.31326959]
[1674102320779,0.92841595,1529.8,1529.7,15.38770959]
[1674102321096,0.75170835,1529.8,1529.7,15.38770959]
[1674102321301,0.68556518,1529.9,1529.8,2.53877096]
[1674102321517,0.28188361,1530.2,1530.0,26.14376]
[1674102321722,1.99543689,1530.2,1530.0,6.53594]
[1674102321911,0.68556518,1530.1,1529.8,16.87924]
[1674102322122,0.68556518,1530.0,1529.7,6.53722]
[1674102322333,0.68556518,1530.0,1529.6,6.59855782]
[1674102322334,1.539,1529.9,1529.6,6.59855782]
[1674102322544,2.71486518,1529.9,1529.6,6.59855782]
[1674102323189,3.74285328,1529.9,1529.6,6.59855782]
[1674102323375,0.37428533,1529.8,1529.6,6.59855782]
[1674102323800,0.68556518,1529.9,1529.6,13.13620782]
[1674102324273,0.68556518,1530.0,1529.6,13.13620782]
[1674102324435,2.22492535,1530.0,1529.6,13.13620782]
[1674102324635,0.68556518,1529.9,1529.6,13.13620782]
[1674102325746,3.76392535,1530.0,1529.6,13.13620782]
[1674102326244,1.19693725,1530.0,1529.6,13.13620782]
[1674102326625,0.68556518,1530.0,1529.6,15.1036076]
[1674102328114,0.066,1530.1,1529.7,3.23]
[1674102328340,0.066,1530.1,1529.8,27.28199176]
[1674102328574,0.28188361,1530.2,1530.0,6.889]
[1674102328730,0.28188361,1530.2,1530.1,4.704]
[1674102329104,0.28188361,1530.2,1530.1,19.80424]
[1674102329381,0.29613782,1530.4,1530.1,26.92324]
[1674102329528,0.29613782,1530.4,1530.3,1.527]
[1674102329529,0.24613782,1530.4,1530.3,1.527]
[1674102329737,0.24613782,1530.4,1530.3,24.13098]
[1674102330431,0.23355261,1530.5,1530.4,2.14626238]
[1674102330580,0.23355261,1530.5,1530.4,6.68526238]
[1674102330796,0.23355261,1530.5,1530.4,21.24382238]
[1674102331043,0.23355261,1530.5,1530.4,10.53423]
[1674102331209,0.23355261,1530.5,1530.2,19.93299682]
[1674102331421,0.23355261,1530.5,1530.2,18.00457]
[1674102331664,0.91911779,1530.5,1530.1,0.066]
[1674102331840,0.09191178,1530.4,1530.1,0.066]
[1674102332064,1.94710589,1530.5,1530.1,0.066]
[1674102332425,1.17566518,1530.4,1530.1,0.066]
[1674102332576,3.73865328,1530.4,1530.1,0.066]
[1674102332788,3.86130691,1530.3,1530.1,0.066]
[1674102333021,5.2245037,1530.3,1530.1,0.066]
[1674102333202,0.4902,1530.2,1530.1,0.066]
[1674102333416,1.4902,1530.2,1530.1,0.066]
[1674102335365,0.4902,1530.2,1530.1,0.066]
[1674102335731,0.82540869,1530.3,1530.1,0.066]
[1674102336295,1.07950608,1530.3,1530.1,0.066]
[1674102338263,1.76507126,1530.3,1530.1,0.066]
[1674102339093,1.0,1530.2,1530.1,0.066]
[1674102341154,2.76507126,1530.3,1530.1,0.066]
[1674102341314,1.27650713,1530.2,1530.1,0.066]
[1674102342372,1.96207231,1530.2,1530.1,0.066]
[1674102343244,1.27650713,1530.2,1530.1,0.066]
[1674102343457,0.27650713,1530.2,1530.1,0.066]
[1674102346147,0.96207231,1530.2,1530.1,0.066]
[1674102346780,1.27650713,1530.2,1530.1,0.066]
[1674102346989,0.96207231,1530.2,1530.1,0.066]
[1674102347330,23.31717418,1530.3,1530.1,0.066]
[1674102347331,1.57697387,1530.3,1530.1,0.066]
[1674102348374,1.51097387,1530.3,1530.1,0.066]
[1674102350360,2.53896197,1530.3,1530.1,0.066]
[1674102350569,1.51097387,1530.3,1530.1,0.066]
[1674102351006,2.51097387,1530.3,1530.1,0.066]
[1674102351421,3.53896197,1530.3,1530.1,0.066]
[1674102351626,0.93289442,1530.2,1530.1,0.066]
[1674102352088,1.93289442,1530.2,1530.1,0.066]
[1674102352791,11.03497252,1530.2,1530.1,0.066]
[1674102352987,11.03497252,1530.2,1529.8,0.0090392]
[1674102352988,0.01240308,1530.0,1529.8,0.0090392]
[1674102353344,0.01240308,1530.0,1529.7,0.046364]
[1674102353345,20.63455627,1529.9,1529.7,0.046364]
[1674102353582,0.68366797,1529.8,1529.7,0.046364]
[1674102353714,16.29626797,1529.8,1529.7,0.046364]
[1674102354192,17.32171424,1529.8,1529.7,0.046364]
[1674102354767,21.66734627,1529.8,1529.7,0.046364]
[1674102355034,25.5500466,1529.8,1529.7,0.046364]
[1674102355396,26.2336992,1529.8,1529.7,0.046364]
[1674102356661,24.6946992,1529.8,1529.7,0.046364]
[1674102356916,1.539,1529.7,1529.3,0.02264394]
[1674102357122,14.76832,1529.6,1529.3,0.02264394]
[1674102358449,14.61442,1529.6,1529.3,0.02264394]
[1674102359126,0.34050138,1529.5,1529.3,0.02264394]
[1674102359921,0.34050138,1529.5,1529.3,6.56152394]
[1674102361024,0.34050138,1529.5,1529.3,6.62255176]
[1674102362814,0.066,1529.7,1529.4,7.53822]
[1674102363019,0.066,1529.7,1529.4,7.20047518]
[1674102365288,7.09282,1529.9,1529.4,7.261503]
[1674102365500,0.066,1529.9,1529.5,0.7261503]
[1674102365730,0.004,1529.9,1529.6,13.07522]
[1674102366152,0.004,1529.9,1529.6,14.07522]
[1674102366349,0.004,1529.9,1529.7,1.407522]
[1674102367377,0.004,1529.9,1529.7,14.481952]
[1674102369164,0.004,1529.9,1529.7,7.944732]
[1674102369694,0.004,1529.9,1529.7,8.944732]
[1674102370999,0.004,1529.9,1529.7,7.944732]
[1674102371811,0.004,1529.9,1529.6,18.4688]
[1674102372048,8.7586226,1530.0,1529.7,0.06102782]
[1674102372422,9.78406887,1530.0,1529.7,0.06102782]
[1674102374577,7.2196226,1530.0,1529.7,0.06102782]
[1674102374739,7.2196226,1530.0,1529.7,1.9140106]
[1674102376041,0.6836526,1530.0,1529.7,17.9883606]
[1674102376256,0.066,1530.1,1529.8,1.0]
[1674102376419,0.066,1530.1,1529.9,0.1]
[1674102376745,0.7496526,1530.1,1529.8,6.53673]
[1674102378364,0.066,1530.1,1529.8,6.53673]
[1674102378798,0.066,1530.1,1529.7,11.4511406]
[1674102378943,0.7496526,1530.1,1529.7,11.4511406]
[1674102379150,7.2852026,1530.1,1529.7,11.4511406]
[1674102380159,0.066,1530.1,1529.8,1.14511406]
[1674102380316,0.066,1530.1,1529.8,14.21822406]
[1674102380736,0.064,1530.1,1529.8,14.22022406]
[1674102380979,0.6836526,1530.2,1529.8,14.27925188]
[1674102381201,0.6836526,1530.2,1529.9,1.42202241]
[1674102383146,19.41429887,1530.3,1529.9,1.42202241]
[1674102383355,19.41429887,1530.3,1529.9,14.49470241]
[1674102383356,1.77509887,1530.3,1529.9,14.49470241]
[1674102383677,0.066,1530.3,1530.1,6.53552]
[1674102383879,0.066,1530.3,1530.0,7.98514024]
[1674102385782,0.066,1530.3,1530.0,14.52108024]
[1674102386237,0.066,1530.3,1530.0,14.5188527]
[1674102386646,0.066,1530.3,1530.1,1.45188527]
[1674102386863,0.066,1530.3,1530.2,19.60527]
[1674102387413,0.066,1530.3,1530.2,19.651634]
[1674102387414,0.016,1530.3,1530.2,19.651634]
[1674102387559,0.91720521,1530.5,1530.2,19.66629782]
[1674102387773,0.91720521,1530.5,1530.2,21.77811613]
[1674102388728,2.45620521,1530.5,1530.2,6.59611782]
[1674102388943,2.45620521,1530.5,1530.2,0.06102782]
[1674102388944,2.2146526,1530.4,1530.2,0.06102782]
[1674102389557,3.2146526,1530.4,1530.2,0.06102782]
[1674102390048,3.50114492,1530.4,1530.2,0.06102782]
[1674102390202,1.97014492,1530.4,1530.2,0.06102782]
[1674102390870,2.99559119,1530.4,1530.2,0.06102782]
[1674102391205,4.52959119,1530.4,1530.2,0.06102782]
[1674102391355,0.6836526,1530.3,1530.2,0.06102782]
[1674102391720,2.62681172,1530.3,1530.2,0.06102782]
[1674102392247,1.62681172,1530.3,1530.2,0.06102782]
[1674102393201,0.94315912,1530.3,1530.2,0.06102782]
[1674102393538,0.45295912,1530.3,1530.2,0.06102782]
[1674102393662,3.50414492,1530.4,1530.2,0.06102782]
[1674102394347,4.52959119,1530.4,1530.2,0.06102782]
[1674102395023,4.52959119,1530.4,1530.1,6.59616782]
[1674102396184,3.50414492,1530.4,1530.1,6.59616782]
[1674102396400,4.52959119,1530.4,1530.1,6.59616782]
[1674102396867,0.6836526,1530.3,1530.1,6.59616782]
[1674102397252,4.52959119,1530.4,1530.1,6.59616782]
[1674102397502,1.13661172,1530.3,1530.1,6.59616782]
[1674102397672,0.6836526,1530.3,1530.1,6.59616782]
[1674102400178,1.70909887,1530.3,1530.1,6.59616782]
[1674102402540,0.6836526,1530.2,1530.1,6.59616782]
[1674102404110,0.6836526,1530.3,1530.1,6.59616782]
[1674102404274,1.70909887,1530.3,1530.1,6.59616782]
[1674102404940,0.6836526,1530.3,1530.1,6.59616782]
[1674102405909,1.70909887,1530.3,1530.1,6.59616782]
[1674102406341,0.6836526,1530.3,1530.1,6.59616782]
[1674102406684,1.77509887,1530.4,1530.1,14.4448716]
[1674102406868,0.6836526,1530.3,1530.1,14.4448716]
[1674102407060,0.7496526,1530.4,1530.1,14.4448716]
[1674102408299,0.7456526,1530.4,1530.2,1.44448716]
[1674102408519,0.6836526,1530.4,1530.2,7.97941716]
[1674102409254,0.6836526,1530.4,1530.2,6.53493]
[1674102410456,0.98320521,1530.5,1530.2,13.06659929]
[1674102410647,0.98320521,1530.5,1530.2,14.06659929]
[1674102410837,0.98320521,1530.5,1530.2,13.06659929]
[1674102411588,2.73501731,1530.5,1530.2,6.53150929]
[1674102411787,0.6836526,1530.4,1530.2,6.53150929]
[1674102412771,0.6836526,1530.4,1530.1,7.08636782]
[1674102413295,1.70909887,1530.4,1530.1,6.59616782]
[1674102414134,0.6836526,1530.3,1530.1,0.06102782]
[1674102414347,0.6836526,1530.2,1530.1,0.06102782]
[1674102414704,0.6836526,1530.2,1529.9,31.88664782]
[1674102415339,1.70909887,1530.2,1529.9,31.88664782]
[1674102415572,2.27023493,1530.2,1529.9,31.88664782]
[1674102416001,1.70909887,1530.2,1529.9,31.88664782]
[1674102416443,0.6836526,1530.2,1529.9,31.88664782]
[1674102416634,1.70909887,1530.3,1529.9,31.88664782]
[1674102421226,0.6836526,1530.2,1529.9,31.88664782]
[1674102425143,1.70909887,1530.2,1529.9,31.88664782]
[1674102425351,0.6836526,1530.1,1529.9,31.88664782]
[1674102426109,0.6836526,1530.1,1529.9,13.13324782]
[1674102426270,0.6836526,1530.1,1529.9,6.59710782]
[1674102426749,0.6836526,1530.1,1529.9,0.06102782]
[1674102427069,0.6836526,1530.1,1529.9,13.13366782]
[1674102427578,0.6836526,1530.1,1529.9,6.59729782]
[1674102427752,0.85456249,1530.1,1529.9,6.59729782]
[1674102427963,0.6836526,1530.1,1529.9,6.59729782]
[1674102428827,0.6836526,1530.1,1529.9,0.06102782]
[1674102430598,0.6836526,1530.1,1529.8,13.13403782]
[1674102431226,1.70909887,1530.1,1529.8,13.13403782]
[1674102431579,1.70909887,1530.1,1529.8,6.59745782]
[1674102431790,0.6836526,1529.9,1529.8,0.06102782]
[1674102432889,0.6836526,1529.9,1529.8,0.05788254]
[1674102436168,10.46807797,1529.9,1529.8,0.05788254]
[1674102436389,18.50030503,1529.9,1529.8,0.05788254]
[1674102436829,19.52755672,1529.9,1529.8,0.05788254]
[1674102437152,18.84472802,1529.9,1529.8,0.05788254]
[1674102437664,18.65059502,1529.9,1529.8,0.05788254]
[1674102437841,19.28733675,1529.9,1529.8,0.05788254]
[1674102438746,21.16634676,1529.9,1529.8,0.05788254]
[1674102438882,23.82509971,1529.9,1529.8,0.05788254]
[1674102439086,23.82509971,1529.9,1529.3,0.08264394]
[1674102439087,1.0,1529.8,1529.3,0.08264394]
[1674102439295,1.535,1529.7,1529.3,13.16048394]
[1674102439558,12.663622,1529.8,1529.3,13.16048394]
[1674102439741,12.613622,1529.8,1529.3,17.02715533]
[1674102440048,12.679622,1529.8,1529.3,16.96715533]
[1674102440675,11.99560997,1529.8,1529.3,16.96715533]
[1674102440924,18.53243997,1529.8,1529.3,16.96715533]
[1674102441608,1.853244,1529.7,1529.3,6.56155394]
[1674102442090,10.929524,1529.7,1529.3,0.02264394]
[1674102442271,9.929524,1529.7,1529.3,0.02264394]
[1674102442449,10.45660997,1529.8,1529.3,13.10050394]
[1674102442675,8.1241,1529.8,1529.3,13.10050394]
[1674102444304,7.6338,1529.8,1529.5,19.61397]
[1674102445137,0.066,1529.8,1529.5,19.61397]
[1674102445354,0.066,1529.8,1529.5,22.412937]
[1674102447630,0.066,1529.8,1529.5,19.61397]
[1674102447861,26.08449203,1530.0,1529.5,19.67997]
[1674102448194,32.62047203,1530.0,1529.5,0.066]
[1674102448341,32.62047203,1530.0,1529.5,0.014]
[1674102448551,9.7986472,1529.9,1529.5,0.014]
[1674102449604,16.3352472,1529.9,1529.5,0.014]
[1674102449810,1.539,1529.8,1529.5,0.014]
[1674102450138,1.534,1529.7,1529.5,0.014]
[1674102451242,1.534,1529.7,1529.4,8.3917]
[1674102451405,3.697554,1529.7,1529.4,8.3917]
[1674102451936,1.539,1529.6,1529.4,0.052]
[1674102453299,1.539,1529.6,1529.3,0.02264394]
[1674102453566,3.3703194,1529.6,1529.3,0.02264394]
[1674102454360,2.229554,1529.7,1529.3,13.10023394]
[1674102454579,0.066,1529.7,1529.3,13.10023394]
[1674102455256,0.066,1529.7,1529.3,22.23963394]
[1674102458361,0.016,1529.7,1529.3,22.29163394]
[1674102458581,10.3101,1529.8,1529.3,22.29363394]
[1674102458787,1.02941,1529.7,1529.3,22.29363394]
[1674102460179,10.3101,1529.8,1529.3,22.29363394]
[1674102460381,8.2888,1529.8,1529.3,26.15287311]
[1674102460591,0.066,1529.8,1529.3,27.69187311]
[1674102460912,0.066,1529.8,1529.5,19.61397]
[1674102461704,0.066,1529.8,1529.5,28.39587]
[1674102463590,20.60982668,1530.0,1529.5,28.46187]
[1674102464559,20.60982668,1530.0,1529.5,38.54517]
[1674102464765,24.11469252,1530.0,1529.5,38.54517]
[1674102464974,0.68401203,1529.9,1529.5,38.54517]
[1674102468639,0.68401203,1529.8,1529.5,18.9312]